bitfinex-derivatives/quotes_ETHF0:USTF0_20250616
["timestamp","ask_amount","ask_price","bid_price","bid_amount"]
[1750070009735,23.231,2627.1,2627.0,1.38505]
[1750070010236,23.99222,2627.1,2627.0,0.6238]
[1750070010437,26.85148481,2627.1,2627.0,0.6238]
[1750070011637,23.99222,2627.1,2627.0,1.38505]
[1750070012624,23.99222,2627.1,2627.0,0.6238]
[1750070013835,23.99222,2627.1,2626.7,0.76132]
[1750070013836,31.20114481,2627.1,2626.7,0.76132]
[1750070014042,0.7613,2626.9,2626.7,1.43222]
[1750070015036,23.9893,2626.9,2626.7,1.43222]
[1750070015237,23.228,2626.9,2626.7,1.43222]
[1750070015440,23.9893,2626.9,2626.8,0.76131]
[1750070015638,23.9893,2626.9,2626.7,1.43221]
[1750070016641,23.228,2626.9,2626.7,1.43221]
[1750070017231,23.228,2626.9,2626.8,0.76131]
[1750070018140,58.87375962,2626.9,2626.5,1.51766477]
[1750070018330,2.85926481,2626.6,2625.5,3.03576708]
[1750070018530,6.06706481,2625.6,2625.1,3.79470886]
[1750070018731,2.85926481,2625.2,2624.9,3.96964]
[1750070018934,2.85926481,2625.2,2625.0,0.76182]
[1750070019135,2.85926481,2625.2,2624.9,3.96964]
[1750070020135,3.62103481,2625.2,2624.9,3.2078]
[1750070020330,3.62110481,2625.0,2624.8,0.0057108]
[1750070021037,2.85926481,2625.0,2624.8,0.0057108]
[1750070021337,0.76186,2624.9,2624.8,0.0057108]
[1750070022040,4.94681481,2625.0,2624.8,0.0057108]
[1750070022937,4.18496481,2625.0,2624.8,0.7676008]
[1750070023141,2.85926481,2625.0,2624.8,0.7676008]
[1750070023333,0.76182,2625.1,2624.8,0.7676008]
[1750070023734,0.76184,2625.0,2624.8,0.0057108]
[1750070023934,2.06192,2625.1,2624.8,0.0057108]
[1750070024135,0.76184,2625.0,2624.8,0.0057108]
[1750070024337,2.06192,2625.1,2624.8,0.7676008]
[1750070024543,0.76184,2625.0,2624.8,0.0057108]
[1750070025331,0.76186,2624.9,2624.8,0.0057108]
[1750070026145,2.11896,2624.9,2624.8,0.0057108]
[1750070027136,25.47296,2624.9,2624.8,0.0057108]
[1750070027335,24.7111,2624.9,2624.8,0.7676008]
[1750070027842,23.354,2624.9,2624.8,0.7676008]
[1750070028137,23.354,2624.9,2624.8,0.0057108]
[1750070028341,24.11586,2624.9,2624.8,0.0057108]
[1750070028736,24.6329,2624.9,2624.8,0.7676008]
[1750070029538,23.354,2624.9,2624.8,0.7676008]
[1750070033143,29.346,2625.1,2625.0,0.76182]
[1750070033337,6.002,2625.1,2625.0,0.76182]
[1750070033647,29.341,2625.1,2625.0,0.76182]
[1750070034242,0.6693108,2625.3,2625.0,2.85926481]
[1750070034446,0.0057108,2625.3,2625.1,0.76179]
[1750070034845,0.0057108,2625.3,2625.2,0.76177]
[1750070035045,0.0057108,2625.3,2625.1,0.76178]
[1750070035448,0.0057108,2625.3,2625.2,0.76177]
[1750070035651,0.0057108,2625.3,2625.2,3.62103481]
[1750070035952,6.003,2625.8,2625.6,0.76164]
[1750070036142,6.003,2625.8,2625.7,0.76163]
[1750070036542,3.2078,2625.9,2625.8,0.7616]
[1750070036849,0.0057108,2626.1,2626.0,0.76154]
[1750070037439,0.0057108,2626.1,2626.0,2.72884]
[1750070040044,0.0057108,2626.1,2626.0,1.40574]
[1750070040449,0.0057108,2626.1,2626.0,0.6442]
[1750070040751,0.0057108,2626.1,2626.0,0.76155]
[1750070041156,0.7672408,2626.1,2625.9,3.42725]
[1750070041447,3.62081481,2626.0,2625.9,2.6657]
[1750070041852,6.82861481,2626.0,2625.9,2.6657]
[1750070042554,3.2078,2626.0,2625.9,2.6657]
[1750070042751,3.96935,2626.0,2625.9,2.6657]
[1750070043549,6.82861481,2626.0,2625.9,2.6657]
[1750070044349,6.82861481,2626.0,2625.5,4.76348481]
[1750070044350,1.90402,2625.8,2625.0,2.25492714]
[1750070044547,3.62098481,2625.4,2625.2,0.76176]
[1750070044943,2.85926481,2625.4,2625.3,3.96955]
[1750070045149,4.4582,2625.7,2625.3,3.2078]
[1750070045347,4.4582,2625.7,2625.4,0.7617]
[1750070045348,6.76266,2625.6,2625.4,0.7617]
[1750070047146,6.76266,2625.6,2625.5,0.76169]
[1750070047548,5.21985,2625.7,2625.5,0.76169]
[1750070047751,3.62093481,2625.6,2625.5,0.76168]
[1750070048353,2.85926481,2625.6,2625.5,0.76168]
[1750070049550,3.62093481,2625.6,2625.5,0.76168]
[1750070051352,0.76172,2625.5,2625.3,0.76173]
[1750070051861,0.76172,2625.5,2625.4,0.76172]
[1750070052356,3.62094481,2625.6,2625.4,0.76172]
[1750070052557,3.62094481,2625.6,2625.5,0.76169]
[1750070055661,3.62093481,2625.6,2625.5,0.76169]
[1750070055961,0.7617,2625.5,2625.4,0.7617]
[1750070056163,3.62095481,2625.6,2625.5,0.7617]
[1750070057261,2.85926481,2625.6,2625.5,0.7617]
[1750070057457,5.21986,2625.7,2625.2,3.13616]
[1750070057458,4.4582,2625.7,2625.3,1.90438]
[1750070057658,27.3266,2625.7,2625.6,0.76167]
[1750070057860,26.6998,2625.7,2625.6,0.76167]
[1750070058265,23.492,2625.7,2625.6,0.76167]
[1750070058765,6.182,2625.8,2625.7,0.76164]
[1750070058966,27.3599,2626.0,2625.9,0.76159]
[1750070059165,28.28432253,2626.0,2625.9,0.76159]
[1750070059964,3.8689,2626.0,2625.9,0.76159]
[1750070060263,27.3609,2626.0,2625.9,0.76159]
[1750070060667,27.3609,2626.0,2625.9,1.31799]
[1750070061058,27.3569,2626.0,2625.9,1.31799]
[1750070062974,30.21616481,2626.0,2625.9,1.31799]
[1750070063171,30.97772481,2626.0,2625.9,1.31799]
[1750070063573,30.21616481,2626.0,2625.9,1.31799]
[1750070065578,3.8689,2626.0,2625.9,1.31799]
[1750070065874,27.3319,2626.0,2625.9,1.31799]
[1750070066369,26.6658,2626.0,2625.9,1.31799]
[1750070066971,3.2078,2626.0,2625.9,1.31799]
[1750070067275,0.0057108,2626.1,2626.0,0.76156]
[1750070067473,0.0057108,2626.1,2626.0,1.42706]
[1750070070279,0.0057108,2626.1,2626.0,4.28632481]
[1750070070576,0.0057108,2626.1,2626.0,5.60512481]
[1750070070877,0.0057108,2626.1,2626.0,2.74586]
[1750070072571,0.6721,2626.4,2626.3,0.76147]
[1750070072768,3.8825,2626.6,2626.5,0.76142]
[1750070073473,6.74176481,2626.6,2626.5,0.76142]
[1750070080882,3.53396481,2626.6,2626.5,0.76142]
[1750070081181,26.93496481,2626.6,2626.5,0.76142]
[1750070084687,24.0757,2626.6,2626.5,0.76142]
[1750070084882,7.35267561,2626.8,2626.5,0.76142]
[1750070084883,3.2135108,2626.8,2626.7,0.76137]
[1750070085286,0.0057108,2626.8,2626.7,3.96917]
[1750070085987,0.0057108,2626.8,2626.7,0.76137]
[1750070087384,0.6371108,2626.8,2626.7,0.76137]
[1750070089791,0.0057108,2626.8,2626.7,0.76137]
[1750070095587,2.86497561,2626.8,2626.7,0.76137]
[1750070096089,0.76146,2626.4,2626.3,0.0057108]
[1750070096393,3.62072481,2626.4,2626.3,0.0057108]
[1750070096692,3.78603514,2626.4,2626.3,0.7671808]
[1750070096892,5.04713514,2626.4,2626.3,0.7671808]
[1750070097784,5.80859514,2626.4,2626.3,0.7671808]
[1750070098594,5.80859514,2626.4,2626.3,0.0057108]
[1750070099796,5.80859514,2626.4,2626.3,0.7671908]
[1750070099992,5.80901513,2626.4,2626.3,0.7671908]
[1750070101687,2.94975032,2626.4,2626.3,0.7671908]
[1750070101887,5.80901513,2626.4,2626.3,0.7671908]
[1750070109896,5.04755513,2626.4,2626.3,0.7671908]
[1750070110096,23.308,2626.4,2626.3,0.7671908]
[1750070110800,7.47039481,2626.6,2626.3,0.0057108]
[1750070111102,7.47039481,2626.6,2626.5,0.76143]
[1750070111303,32.9360977,2626.6,2626.5,0.76143]
[1750070113403,0.76146,2626.5,2626.4,0.76143]
[1750070113604,4.5479277,2626.5,2626.4,0.76143]
[1750070114498,0.76146,2626.4,2626.3,0.7671708]
[1750070119402,1.9090908,2626.8,2626.7,0.76137]
[1750070119403,0.0057108,2626.8,2626.7,0.76137]
[1750070119594,0.7670508,2626.8,2626.7,0.76137]
[1750070119795,0.76137,2626.7,2626.6,0.636]
[1750070120103,4.28526481,2626.7,2626.6,0.7614]
[1750070120298,5.21312717,2626.7,2626.6,0.7614]
[1750070120700,4.45172717,2626.7,2626.6,0.7614]
[1750070121099,3.52386481,2626.7,2626.6,0.7614]
[1750070121605,4.28523481,2626.7,2626.6,0.7614]
[1750070122104,5.2133829,2626.7,2626.6,0.7614]
[1750070124908,1.59274809,2626.7,2626.6,0.7614]
[1750070125206,2.35411809,2626.7,2626.6,0.7614]
[1750070126210,1.59274809,2626.7,2626.6,0.7614]
[1750070126511,2.35411809,2626.7,2626.6,0.7614]
[1750070127216,2.35454377,2626.7,2626.6,0.7614]
[1750070127517,24.90217377,2626.7,2626.6,0.7614]
[1750070127709,25.66354377,2626.7,2626.6,0.7614]
[1750070128013,6.07277561,2626.8,2626.7,0.76137]
[1750070128214,36.35428498,2626.8,2626.7,0.76137]
[1750070128513,33.49502017,2626.8,2626.7,0.76137]
[1750070128811,30.28722017,2626.8,2626.7,0.76137]
[1750070129114,31.04856017,2626.8,2626.7,0.76137]
[1750070130005,33.90782498,2626.8,2626.7,0.76137]
[1750070130410,33.89882498,2626.8,2626.7,0.76137]
[1750070130816,37.10662498,2626.8,2626.7,0.76137]
[1750070132422,36.17811561,2626.8,2626.7,0.76137]
[1750070133316,37.10606966,2626.8,2626.7,0.76137]
[1750070138026,36.34472966,2626.8,2626.7,0.76137]
[1750070138524,37.10606966,2626.8,2626.7,0.76137]
[1750070148747,7.76206966,2626.8,2626.7,0.76137]
[1750070149041,31.01606966,2626.8,2626.7,0.76137]
[1750070149741,0.76143,2626.6,2626.5,0.76139]
[1750070149937,26.87469481,2626.6,2626.5,0.76139]
[1750070150242,27.80264886,2626.6,2626.5,0.76139]
[1750070150643,0.76143,2626.5,2626.4,0.636]
[1750070150843,1.68938405,2626.5,2626.4,1.39743]
[1750070157139,1.68938405,2626.5,2626.4,0.76143]
[1750070157537,0.76146,2626.4,2626.3,0.0057108]
[1750070157845,29.75627886,2626.4,2626.3,0.0057108]
[1750070158045,0.76157,2626.1,2626.0,0.76154]
[1750070158346,28.15232405,2626.1,2626.0,0.76154]
[1750070158546,31.01158886,2626.1,2626.0,0.76154]
[1750070160436,37.03158886,2626.1,2626.0,0.76154]
[1750070161045,43.17391886,2626.1,2625.8,0.0057108]
[1750070161243,4.76329481,2625.9,2625.2,2.5213]
[1750070161448,2.85926481,2625.5,2625.4,0.76173]
[1750070161743,26.15126481,2625.5,2625.4,0.76173]
[1750070162149,23.29,2625.5,2625.4,3.62101481]
[1750070162343,6.02,2625.7,2625.6,0.76169]
[1750070162344,29.31,2625.7,2625.6,0.76169]
[1750070163046,29.31,2625.7,2625.6,2.70119]
[1750070163351,0.7616,2626.0,2625.6,4.79876481]
[1750070163555,30.08461,2625.9,2625.8,0.76163]
[1750070164554,0.76166,2625.8,2625.7,0.76164]
[1750070166552,32.94388481,2625.9,2625.8,0.76163]
[1750070171849,0.76166,2625.8,2625.7,0.76163]
[1750070172049,3.96946,2625.8,2625.7,0.76163]
[1750070173752,0.76166,2625.8,2625.7,0.76163]
[1750070173956,3.96946,2625.8,2625.7,0.76163]
[1750070176360,3.2078,2625.8,2625.7,0.76163]
[1750070177355,4.61453,2625.8,2625.7,0.76163]
[1750070179866,0.76171,2625.7,2625.6,0.76167]
[1750070180066,26.88197481,2625.7,2625.6,0.76167]
[1750070180669,0.76169,2625.6,2625.5,1.4173]
[1750070180865,0.76177,2625.4,2625.3,0.76174]
[1750070181065,0.76178,2625.3,2625.2,0.0057108]
[1750070181370,3.28378,2625.3,2625.2,0.0057108]
[1750070181766,3.58648589,2625.3,2625.2,0.0057108]
[1750070182071,4.51447238,2625.3,2625.2,0.0057108]
[1750070182868,4.51447238,2625.3,2625.2,0.7675208]
[1750070183170,4.21176649,2625.3,2625.2,0.7675208]
[1750070185977,33.49876649,2625.3,2625.2,0.7675208]
[1750070186375,33.49876649,2625.3,2625.2,0.0057108]
[1750070187372,33.49907017,2625.3,2625.2,0.0057108]
[1750070187577,25.57367017,2625.3,2625.2,0.7675208]
[1750070187878,28.43293498,2625.3,2625.2,0.7675208]
[1750070188372,28.43293498,2625.3,2625.2,0.0057108]
[1750070188571,29.72543498,2625.3,2625.2,0.0057108]
[1750070188974,28.43293498,2625.3,2625.2,0.7675208]
[1750070193376,3.2078,2625.4,2625.3,0.76178]
[1750070193676,6.6685,2625.6,2625.5,0.76172]
[1750070194072,29.9345,2625.6,2625.5,0.76172]
[1750070194478,29.291,2625.6,2625.5,0.76172]
[1750070194878,26.4748,2625.7,2625.6,0.76169]
[1750070195185,27.40315912,2625.7,2625.6,0.76169]
[1750070195484,4.13615912,2625.7,2625.6,0.76169]
[1750070195675,27.40215912,2625.7,2625.6,0.76169]
[1750070196177,26.4738,2625.7,2625.6,0.76169]
[1750070196881,3.2078,2625.7,2625.6,0.76169]
[1750070197776,3.2078,2625.7,2625.6,1.39719]
[1750070200983,0.7616,2625.9,2625.8,0.76163]
[1750070201184,3.9694,2625.9,2625.8,0.76163]
[1750070201689,3.2078,2625.9,2625.8,0.76163]
[1750070202286,3.9694,2625.9,2625.8,0.76163]
[1750070202479,6.82866481,2625.9,2625.8,0.76163]
[1750070202685,7.75693861,2625.9,2625.8,0.76163]
[1750070205497,6.82866481,2625.9,2625.8,0.76163]
[1750070205998,7.75692954,2625.9,2625.8,0.76163]
[1750070206391,7.75692095,2625.9,2625.8,0.76163]
[1750070206893,0.76168,2625.8,2625.7,0.76164]
[1750070207098,24.95196884,2625.8,2625.7,0.76164]
[1750070207397,26.27536884,2625.8,2625.7,0.76164]
[1750070207697,0.76171,2625.7,2625.6,0.76167]
[1750070207898,3.62097481,2625.7,2625.6,0.76167]
[1750070208092,0.76175,2625.5,2625.4,0.76169]
[1750070208297,0.76175,2625.5,2625.2,0.0057108]
[1750070208298,0.76177,2625.3,2625.2,0.0057108]
[1750070208594,26.88303481,2625.3,2625.2,0.0057108]
[1750070208793,33.82756588,2625.3,2625.2,0.0057108]
[1750070208993,35.11086588,2625.3,2625.2,0.0057108]
[1750070212713,34.18233481,2625.3,2625.2,0.0057108]
[1750070212916,35.11003071,2625.3,2625.2,0.0057108]
[1750070213817,35.11003071,2625.3,2625.2,0.7675108]
[1750070215315,35.11003071,2625.3,2625.2,0.0057108]
[1750070215615,35.11003071,2625.3,2625.2,0.83488486]
[1750070216022,35.11003071,2625.3,2625.2,0.07308486]
[1750070216518,35.11003071,2625.3,2625.2,0.7675108]
[1750070216714,35.11003071,2625.3,2625.2,0.0057108]
[1750070217017,35.11003071,2625.3,2625.2,0.7675108]
[1750070217320,35.11003071,2625.3,2625.2,0.0057108]
[1750070217518,35.11003071,2625.3,2625.2,0.07308486]
[1750070218510,35.11003071,2625.3,2625.2,0.0057108]
[1750070222219,35.11003071,2625.3,2625.2,0.7675108]
[1750070222418,35.11003071,2625.3,2625.2,0.0057108]
[1750070222811,35.11003071,2625.3,2625.2,0.7675108]
[1750070223417,35.11003071,2625.3,2625.2,0.0057108]
[1750070229620,33.82673071,2625.3,2625.2,0.0057108]
[1750070229816,33.82673071,2625.3,2625.2,0.6331108]
[1750070232119,33.82673071,2625.3,2625.2,0.0057108]
[1750070234716,33.82673071,2625.3,2625.2,0.07308486]
[1750070237828,33.82673071,2625.3,2625.2,0.0057108]
[1750070239325,33.82673071,2625.3,2624.9,1.43396]
[1750070239326,1.90463,2625.1,2624.6,2.27390357]
[1750070239529,6.82900481,2624.7,2624.6,0.6175]
[1750070239733,31.02270071,2624.7,2624.6,0.6175]
[1750070240228,31.02270071,2624.7,2624.6,1.37947]
[1750070240427,31.02270071,2624.7,2624.6,4.23873481]
[1750070240428,0.9276959,2624.7,2624.6,4.23873481]
[1750070240630,29.281,2624.8,2624.7,0.76195]
[1750070240824,0.93169655,2624.8,2624.7,2.75105]
[1750070241025,0.0057108,2624.9,2624.8,0.76192]
[1750070241324,0.0057108,2624.9,2624.8,2.06262]
[1750070241631,0.93967877,2624.9,2624.8,2.06262]
[1750070242327,1.70156877,2624.9,2624.8,2.06262]
[1750070242827,4.56083358,2624.9,2624.8,1.3007]
[1750070243030,0.76192,2624.8,2624.7,0.662]
[1750070243233,24.96188797,2624.8,2624.7,0.662]
[1750070243725,24.96188797,2624.8,2624.7,1.42393]
[1750070245422,1.69588797,2624.8,2624.7,1.42393]
[1750070245624,0.93396797,2624.8,2624.7,1.42393]
[1750070245828,23.2717108,2624.9,2624.8,0.76192]
[1750070246031,24.20567466,2624.9,2624.8,2.12042]
[1750070246632,24.96756466,2624.9,2624.8,2.12042]
[1750070247538,27.82686666,2624.9,2624.8,2.12042]
[1750070248040,27.06497666,2624.9,2624.8,2.12042]
[1750070248338,24.96760185,2624.9,2624.8,2.12042]
[1750070250241,24.20571185,2624.9,2624.8,2.12042]
[1750070250443,24.96760185,2624.9,2624.8,2.12042]
[1750070251340,24.20571185,2624.9,2624.8,2.12042]
[1750070251641,24.96760185,2624.9,2624.8,2.12042]
[1750070251838,0.93971185,2624.9,2624.8,2.12042]
[1750070255249,0.0057108,2624.9,2624.8,2.18779406]
[1750070257347,0.7676008,2624.9,2624.8,2.18779406]
[1750070257752,0.94146511,2624.9,2624.8,2.18779406]
[1750070258153,1.70335511,2624.9,2624.8,2.18779406]
[1750070258357,1.70335511,2624.9,2624.8,0.82929406]
[1750070258358,5.23171992,2624.9,2624.8,0.82929406]
[1750070261459,5.23171992,2624.9,2624.8,0.06737406]
[1750070261964,7.19921992,2624.9,2624.8,0.06737406]
[1750070264066,7.19921992,2624.9,2624.8,0.82929406]
[1750070264561,7.19921992,2624.9,2624.8,0.06737406]
[1750070264762,7.19921992,2624.9,2624.8,0.82929406]
[1750070265563,7.19921992,2624.9,2624.8,0.06737406]
[1750070266268,0.76192,2624.8,2624.7,0.76194]
[1750070266465,0.762,2624.7,2624.6,0.76195]
[1750070266671,13.77881912,2624.7,2624.6,0.76195]
[1750070266872,15.02621912,2624.7,2624.6,0.76195]
[1750070269372,15.02621912,2624.7,2624.6,0.82932406]
[1750070269675,10.15755431,2624.7,2624.6,0.82932406]
[1750070270178,10.91950431,2624.7,2624.6,0.82932406]
[1750070272381,10.91950431,2624.7,2624.6,0.06737406]
[1750070272566,13.77876912,2624.7,2624.6,0.06737406]
[1750070272876,15.13396912,2624.7,2624.6,0.06737406]
[1750070278573,0.76223,2623.8,2623.7,0.76221]
[1750070278774,3.2078,2624.0,2623.6,4.76490481]
[1750070278976,3.2078,2624.0,2623.9,0.76218]
[1750070279375,3.2078,2624.0,2623.9,3.32438]
[1750070279575,3.96995,2624.0,2623.9,3.32438]
[1750070279971,3.96995,2624.0,2623.9,2.5622]
[1750070280380,4.90449962,2624.0,2623.9,1.2869]
[1750070280774,5.54859962,2624.0,2623.9,0.6318]
[1750070283382,4.61405,2624.0,2623.9,0.6318]
[1750070284880,4.61405,2624.0,2623.9,0.69917406]
[1750070285580,4.61405,2624.0,2623.9,1.22030152]
[1750070285776,4.61405,2624.0,2623.9,0.69917406]
[1750070286177,32.4868,2624.0,2623.9,1.46135406]
[1750070286383,32.4868,2624.0,2623.9,4.32061887]
[1750070286680,3.2078,2624.0,2623.9,4.32061887]
[1750070287283,3.96995,2624.0,2623.9,4.84165568]
[1750070287480,3.96995,2624.0,2623.9,4.84172613]
[1750070287670,3.2078,2624.0,2623.9,4.84172348]
[1750070288181,3.2078,2624.0,2623.9,1.46135406]
[1750070288484,3.96995,2624.0,2623.9,1.9820708]
[1750070288676,3.96995,2624.0,2623.9,1.98206923]
[1750070288876,3.96995,2624.0,2623.9,1.98208276]
[1750070289177,3.96995,2624.0,2623.9,1.46135406]
[1750070289483,3.96995,2624.0,2623.9,1.98212922]
[1750070290084,3.96995,2624.0,2623.9,2.50290229]
[1750070290281,3.96995,2624.0,2623.9,1.98212922]
[1750070290481,3.96995,2624.0,2623.9,2.50294702]
[1750070290677,3.96995,2624.0,2623.9,1.98212922]
[1750070291178,0.76215,2624.0,2623.9,5.36219615]
[1750070291382,0.76215,2624.0,2623.9,4.84139403]
[1750070291584,0.76215,2624.0,2623.9,1.98212922]
[1750070291984,0.76215,2624.0,2623.9,2.5030008]
[1750070292279,0.76215,2624.0,2623.9,1.98212922]
[1750070292486,0.76214,2624.1,2624.0,0.76212]
[1750070292686,30.04108,2624.3,2624.2,0.76209]
[1750070292889,6.77706,2624.3,2624.2,1.28284118]
[1750070293081,6.77706,2624.3,2624.2,1.28284193]
[1750070293284,6.77706,2624.3,2624.2,2.63434766]
[1750070293482,6.77706,2624.3,2624.2,2.63428783]
[1750070293687,6.77706,2624.3,2624.2,2.6342887]
[1750070293982,6.77706,2624.3,2624.2,2.11359]
[1750070294491,6.77706,2624.3,2624.2,2.6342596]
[1750070294684,6.77706,2624.3,2624.2,2.63427071]
[1750070294884,6.77706,2624.3,2624.2,2.63426424]
[1750070295086,6.77706,2624.3,2624.2,2.11359]
[1750070295390,6.77706,2624.3,2624.2,2.6342348]
[1750070295991,6.77706,2624.3,2624.2,2.11359]
[1750070298389,7.71202373,2624.3,2624.2,2.11359]
[1750070301084,7.71202373,2624.3,2624.2,2.18096406]
[1750070301283,7.71202373,2624.3,2624.2,0.82946406]
[1750070304386,9.56872373,2624.3,2624.2,0.82946406]
[1750070304589,12.77652373,2624.3,2624.2,0.82946406]
[1750070305694,12.77652373,2624.3,2624.2,0.06737406]
[1750070305888,12.77652373,2624.3,2624.2,0.82946406]
[1750070307593,11.54542373,2624.3,2624.2,0.82946406]
[1750070309293,11.54542373,2624.3,2624.2,0.06737406]
[1750070309498,12.89002373,2624.3,2624.2,0.06737406]
[1750070310198,13.51772373,2624.3,2624.2,0.06737406]
[1750070313999,18.51772373,2624.3,2624.2,0.06737406]
[1750070316504,13.51772373,2624.3,2624.2,0.06737406]
[1750070322799,13.51772373,2624.3,2624.2,0.5877567]
[1750070323004,13.51772373,2624.3,2624.2,0.06737406]
[1750070323205,36.77872373,2624.3,2624.2,0.06737406]
[1750070323816,36.77872373,2624.3,2624.2,0.58778079]
[1750070324002,36.77872373,2624.3,2624.2,0.58778392]
[1750070324308,36.7801713,2624.3,2624.2,0.06737406]
[1750070325611,36.7801713,2624.3,2624.2,0.58778687]
[1750070325813,36.7801713,2624.3,2624.2,0.06737406]
[1750070326509,36.7801713,2624.3,2624.2,0.5877863]
[1750070326710,36.7801713,2624.3,2624.2,0.06737406]
[1750070327311,36.7801713,2624.3,2624.2,0.58776357]
[1750070327508,36.7801713,2624.3,2624.2,0.58776318]
[1750070327706,36.7801713,2624.3,2624.2,0.06737406]
[1750070328604,36.7801713,2624.3,2624.2,0.58800505]
[1750070328805,36.7801713,2624.3,2624.2,0.06737406]
[1750070329006,36.7801713,2624.3,2624.2,0.58800603]
[1750070329209,36.7801713,2624.3,2624.2,0.06737406]
[1750070330115,36.7801713,2624.3,2624.2,0.58802361]
[1750070330510,36.7801713,2624.3,2624.2,0.58774977]
[1750070330715,36.7801713,2624.3,2624.2,0.58775]
[1750070330911,36.7801713,2624.3,2624.2,0.06737406]
[1750070331106,39.06188453,2624.3,2623.9,0.45340516]
[1750070331325,9.11092804,2624.0,2623.9,0.45340516]
[1750070331513,33.30633934,2624.0,2623.9,0.45340516]
[1750070333617,33.30633934,2624.0,2623.9,0.14680517]
[1750070334217,33.95093934,2624.0,2623.9,0.14680517]
[1750070338018,9.86784926,2625.8,2625.0,0.16570568]
[1750070338313,5.32166872,2626.7,2625.7,1.90409]
[1750070338515,5.77599146,2626.6,2626.4,3.96924]
[1750070338710,5.77599146,2626.6,2626.5,3.56431929]
[1750070338913,29.8882336,2626.7,2626.5,2.42888375]
[1750070339109,11.48719146,2626.6,2626.5,1.248]
[1750070339313,14.69419146,2626.6,2626.5,1.18067488]
[1750070339518,50.36564569,2626.6,2626.3,0.0057108]
[1750070339815,14.34645627,2626.4,2626.3,0.0057108]
[1750070340021,15.10790627,2626.4,2626.3,1.22320396]
[1750070340316,20.4319705,2626.4,2626.3,1.22320396]
[1750070340719,19.6705205,2626.4,2626.3,1.58028985]
[1750070340918,19.6705205,2626.4,2626.3,1.22320396]
[1750070341119,20.4319705,2626.4,2626.3,1.22320396]
[1750070341711,20.4319705,2626.4,2626.3,1.58028822]
[1750070341918,20.4319705,2626.4,2626.3,1.22320396]
[1750070342322,19.6705205,2626.4,2626.3,0.8963399]
[1750070342518,20.4319705,2626.4,2626.3,0.53925863]
[1750070342821,20.4319705,2626.4,2626.3,0.89634224]
[1750070343016,20.4319705,2626.4,2626.3,0.89634193]
[1750070343219,20.4319705,2626.4,2626.3,0.0057108]
[1750070343515,19.6705205,2626.4,2626.3,0.36279747]
[1750070343715,19.6705205,2626.4,2626.3,0.89630901]
[1750070343915,46.37325569,2626.4,2626.3,1.65778901]
[1750070344116,41.04919146,2626.4,2626.3,0.7671908]
[1750070344722,41.04919146,2626.4,2626.3,1.65755481]
[1750070344918,41.04919146,2626.4,2626.3,0.7671908]
[1750070345319,5.7112,2626.4,2626.3,0.7671908]
[1750070345520,3.2078,2626.6,2626.5,0.76142]
[1750070345820,32.7628,2626.6,2626.5,0.76142]
[1750070346021,38.474,2626.6,2626.5,1.65159373]
[1750070346217,8.919,2626.6,2626.5,2.44983754]
[1750070346524,32.7608,2626.6,2626.5,2.62595242]
[1750070346725,32.7608,2626.6,2626.5,2.62594949]
[1750070346924,32.7608,2626.6,2626.5,2.44982936]
[1750070347113,6.006,2626.6,2626.5,2.62594414]
[1750070347318,29.55,2626.6,2626.5,2.62593073]
[1750070347522,29.55,2626.6,2626.5,2.09282]
[1750070347824,29.55,2626.6,2626.5,2.62590915]
[1750070348024,29.55,2626.6,2626.5,2.9829115]
[1750070348324,29.55,2626.6,2626.5,2.09282]
[1750070348721,29.55,2626.6,2626.5,2.44982363]
[1750070348922,6.006,2626.6,2626.5,2.09282]
[1750070349119,29.546,2626.6,2626.5,2.63782179]
[1750070349319,0.0057108,2626.9,2626.8,0.76134]
[1750070349528,29.5387108,2626.9,2626.8,1.30630376]
[1750070349728,29.5387108,2626.9,2626.8,1.11832205]
[1750070349729,35.2491108,2626.9,2626.8,1.11832205]
[1750070349924,35.2491108,2626.9,2626.8,1.11832208]
[1750070350122,35.2491108,2626.9,2626.8,0.76134]
[1750070350325,35.2491108,2626.9,2626.8,1.66328548]
[1750070350625,35.2491108,2626.9,2626.8,0.76134]
[1750070353629,11.7211108,2626.9,2626.8,0.76134]
[1750070353832,35.2271108,2626.9,2626.8,0.76134]
[1750070354526,35.2271108,2626.9,2626.8,2.04954]
[1750070361037,35.2271108,2626.9,2626.8,2.11691406]
[1750070362337,35.2271108,2626.9,2626.8,0.82871406]
[1750070365334,35.2271108,2626.9,2626.8,2.04122403]
[1750070366329,35.2271108,2626.9,2626.8,3.17288478]
[1750070366532,35.1601108,2626.9,2626.8,3.17288478]
[1750070367337,35.1601108,2626.9,2626.8,4.3151276]
[1750070367738,35.1601108,2626.9,2626.8,3.10261763]
[1750070367936,35.1601108,2626.9,2626.8,4.32220698]
[1750070368440,35.1601108,2626.9,2626.8,2.04830341]
[1750070374144,11.7211108,2626.9,2626.8,2.04830341]
[1750070374344,35.1271108,2626.9,2626.8,2.04830341]
[1750070379749,5.7161108,2626.9,2626.8,2.04830341]
[1750070379953,11.8551108,2626.9,2626.8,2.04830341]
[1750070380143,29.79422371,2626.9,2626.8,1.28696341]
[1750070380349,31.09512371,2626.9,2626.8,2.80522079]
[1750070380551,31.09512371,2626.9,2626.8,2.42517459]
[1750070380750,31.09512371,2626.9,2626.8,3.18651459]
[1750070380950,54.47512371,2626.9,2626.8,3.18651459]
[1750070381250,54.47512371,2626.9,2626.8,2.42517459]
[1750070381449,22.08617649,2626.9,2626.8,0.06737406]
[1750070381646,50.84686649,2626.9,2626.8,1.98057452]
[1750070381852,51.60817649,2626.9,2626.8,1.98057452]
[1750070382549,21.32486649,2626.9,2626.8,1.98057452]
[1750070382750,49.54296649,2626.9,2626.8,3.4988319]
[1750070382953,49.54296649,2626.9,2626.8,4.25780057]
[1750070383453,44.21890226,2626.9,2626.8,4.25780057]
[1750070383856,44.98021226,2626.9,2626.8,4.25780057]
[1750070384251,44.21890226,2626.9,2626.8,4.25780057]
[1750070385355,44.98021226,2626.9,2626.8,4.25780057]
[1750070385855,44.21890226,2626.9,2626.8,4.25780057]
[1750070386449,6.1447108,2626.9,2626.8,4.25780057]
[1750070386654,6.1447108,2626.9,2626.8,4.91360057]
[1750070386655,29.5197108,2626.9,2626.8,4.91360057]
[1750070386958,29.5197108,2626.9,2626.8,2.63637452]
[1750070387257,23.3797108,2626.9,2626.8,2.63637452]
[1750070387552,23.3797108,2626.9,2626.8,6.14460869]